Workbook

Sheet Перечень
A1: Форма предоставления информации для реализации невостребованных автомабильных запасных частей
A2: № п/п | B2: Наименование | C2: № Лота | D2: Номенклатурный номер | E2: Вид НЛ/НВЛ * | F2: Наименование | G2: Артикул | H2: Количество | I2: Ед. измер. | J2: Цена реализации, руб. | K2: Цена реализации в т.ч. НДС (20%) руб. за ед. изм. | L2: Сумма реализации в т.ч. НДС (20%), руб. | M2: Техническое состояние | N2: Место нахождения (Адрес склада (фактический), Наименование организации (хранителя))
A3: 1 | B3: 2 | C3: 3 | E3: 4 | F3: 5 | H3: 8 | I3: 9 | N3: 10
A4: 1 | B4: АО "АНХК" | C4: №1 Невостребованные автомобильные запасные части | D4: 4552107601 | E4: Запчасти и прочее | F4: БАМПЕР(Л.КРУИЗЕР) | G4: 5210760060 | H4: 2 | I4: шт. | J4: 545.49 | K4: =ROUND(J4*20/100,3)+J4 -> 654.588 | L4: =K4*H4 -> 1309.176 | M4: Хорошее тех.состояние. Пригодные для дальнейшего использования | N4: Промплощадка АО "АНХК", г.Ангарск, Склад № 18, Иркутская область
A5: 2 | B5: АО "АНХК" | C5: №1 Невостребованные автомобильные запасные части | D5: 4543420101 | E5: Запчасти и прочее | F5: ВАЛ ПРИВОДА КОЛЕСА(КОРОЛЛА) | G5: 4342012091 | H5: 7 | I5: шт. | J5: 1965.85 | K5: =ROUND(J5*20/100,3)+J5 -> 2359.02 | L5: =K5*H5 -> 16513.14 | M5: Хорошее тех.состояние. Пригодные для дальнейшего использования | N5: Промплощадка АО "АНХК", г.Ангарск, Склад № 18, Иркутская область
A6: 3 | B6: АО "АНХК" | C6: №1 Невостребованные автомобильные запасные части | D6: 4543410101 | E6: Запчасти и прочее | F6: ВАЛ ПРИВОДА КОЛЕСА(КОРОЛЛА) | G6: 4341060070 | H6: 8 | I6: шт. | J6: 2733 | K6: =ROUND(J6*20/100,3)+J6 -> 3279.6 | L6: =K6*H6 -> 26236.8 | M6: Хорошее тех.состояние. Пригодные для дальнейшего использования | N6: Промплощадка АО "АНХК", г.Ангарск, Склад № 18, Иркутская область
A7: 4 | B7: АО "АНХК" | C7: №1 Невостребованные автомобильные запасные части | D7: 4545210201 | E7: Запчасти и прочее | F7: ВАЛ РУЛЯ(ХАЙ-ЭЙС) | G7: 4521026050 | H7: 4 | I7: шт. | J7: 1773 | K7: =ROUND(J7*20/100,3)+J7 -> 2127.6 | L7: =K7*H7 -> 8510.4 | M7: Хорошее тех.состояние. Пригодные для дальнейшего использования | N7: Промплощадка АО "АНХК", г.Ангарск, Склад № 18, Иркутская область
A8: 5 | B8: АО "АНХК" | C8: №1 Невостребованные автомобильные запасные части | D8: 4543420102 | E8: Запчасти и прочее | F8: ВАЛ ПРИВОДА-ШАРНИР(КОРОЛЛА) | G8: 4342012110 | H8: 46 | I8: шт. | J8: 360 | K8: =ROUND(J8*20/100,3)+J8 -> 432 | L8: =K8*H8 -> 19872 | M8: Хорошее тех.состояние. Пригодные для дальнейшего использования | N8: Промплощадка АО "АНХК", г.Ангарск, Склад № 18, Иркутская область
A9: 6 | B9: АО "АНХК" | C9: №1 Невостребованные автомобильные запасные части | D9: 4513202601 | E9: Запчасти и прочее | F9: ВКЛАДЫШИ ШАТУННЫЕ(КОРОЛЛА) | G9: 130415404101 | H9: 3 | I9: шт. | J9: 257 | K9: =ROUND(J9*20/100,3)+J9 -> 308.4 | L9: =K9*H9 -> 925.2 | M9: Хорошее тех.состояние. Пригодные для дальнейшего использования | N9: Промплощадка АО "АНХК", г.Ангарск, Склад № 18, Иркутская область
A10: 7 | B10: АО "АНХК" | C10: №1 Невостребованные автомобильные запасные части | D10: 4511704101 | E10: Запчасти и прочее | F10: ВКЛАДЫШ (Л.КРУИЗЕР) | G10: 1170154061 | H10: 2 | I10: шт. | J10: 351 | K10: =ROUND(J10*20/100,3)+J10 -> 421.2 | L10: =K10*H10 -> 842.4 | M10: Хорошее тех.состояние. Пригодные для дальнейшего использования | N10: Промплощадка АО "АНХК", г.Ангарск, Склад № 18, Иркутская область
A11: 8 | B11: АО "АНХК" | C11: №1 Невостребованные автомобильные запасные части | D11: 4511701102 | E11: Запчасти и прочее | F11: ВКЛАДЫШИ КОРЕННЫЕ(Л.КРУИЗЕР) | G11: 1320417010025 | H11: 16 | I11: шт. | J11: 279 | K11: =ROUND(J11*20/100,3)+J11 -> 334.8 | L11: =K11*H11 -> 5356.8 | M11: Хорошее тех.состояние. Пригодные для дальнейшего использования | N11: Промплощадка АО "АНХК", г.Ангарск, Склад № 18, Иркутская область
A12: 9 | B12: АО "АНХК" | C12: №1 Невостребованные автомобильные запасные части | D12: 4511701601 | E12: Запчасти и прочее | F12: ВКЛАДЫШИ КОРЕННЫЕ(КОРОЛЛА) | G12: 11701540607 | H12: 4 | I12: шт. | J12: 244 | K12: =ROUND(J12*20/100,3)+J12 -> 292.8 | L12: =K12*H12 -> 1171.2 | M12: Хорошее тех.состояние. Пригодные для дальнейшего использования | N12: Промплощадка АО "АНХК", г.Ангарск, Склад № 18, Иркутская область
A13: 10 | B13: АО "АНХК" | C13: №1 Невостребованные автомобильные запасные части | D13: 4513202601 | E13: Запчасти и прочее | F13: ВКЛАДЫШИ ШАТУННЫЕ(КОРОЛЛА) | G13: 30415404101 | H13: 3 | I13: шт. | J13: 102 | K13: =ROUND(J13*20/100,3)+J13 -> 122.4 | L13: =K13*H13 -> 367.2 | M13: Хорошее тех.состояние. Пригодные для дальнейшего использования | N13: Промплощадка АО "АНХК", г.Ангарск, Склад № 18, Иркутская область
A14: 11 | B14: АО "АНХК" | C14: №1 Невостребованные автомобильные запасные части | D14: 4513202501 | E14: Запчасти и прочее | F14: ВКЛАДЫШИ ШАТУННЫЕ(ХАЙ-ЭЙС) | G14: 132025401001 | H14: 9 | I14: шт. | J14: 84 | K14: =ROUND(J14*20/100,3)+J14 -> 100.8 | L14: =K14*H14 -> 907.2 | M14: Хорошее тех.состояние. Пригодные для дальнейшего использования | N14: Промплощадка АО "АНХК", г.Ангарск, Склад № 18, Иркутская область
A15: 12 | B15: АО "АНХК" | C15: №1 Невостребованные автомобильные запасные части | D15: 4513204101 | E15: Запчасти и прочее | F15: ВКЛАДЫШ (Л.КРУИЗЕР) | G15: 132026403101 | H15: 1 | I15: шт. | J15: 173 | K15: =ROUND(J15*20/100,3)+J15 -> 207.6 | L15: =K15*H15 -> 207.6 | M15: Хорошее тех.состояние. Пригодные для дальнейшего использования | N15: Промплощадка АО "АНХК", г.Ангарск, Склад № 18, Иркутская область
A16: 13 | B16: АО "АНХК" | C16: №1 Невостребованные автомобильные запасные части | D16: 4584210101 | E16: Запчасти и прочее | F16: ВКЛЮЧАТЕЛЬ(ТОЙОТА) | G16: 8421012040 | H16: 1 | I16: шт. | J16: 651 | K16: =ROUND(J16*20/100,3)+J16 -> 781.2 | L16: =K16*H16 -> 781.2 | M16: Хорошее тех.состояние. Пригодные для дальнейшего использования | N16: Промплощадка АО "АНХК", г.Ангарск, Склад № 18, Иркутская область
A17: 14 | B17: АО "АНХК" | C17: №1 Невостребованные автомобильные запасные части | D17: 4584510601 | E17: Запчасти и прочее | F17: ВКЛЮЧАТЕЛЬ(ТОЙОТА) | G17: 8434032050 | H17: 1 | I17: шт. | J17: 89.59 | K17: =ROUND(J17*20/100,3)+J17 -> 107.508 | L17: =K17*H17 -> 107.508 | M17: Хорошее тех.состояние. Пригодные для дальнейшего использования | N17: Промплощадка АО "АНХК", г.Ангарск, Склад № 18, Иркутская область
A18: 15 | B18: АО "АНХК" | C18: №1 Невостребованные автомобильные запасные части | D18: 4548632201 | E18: Запчасти и прочее | F18: ВТУЛКА(ХАЙ-ЭЙС) | G18: 4863226010 | H18: 172 | I18: шт. | J18: 216 | K18: =ROUND(J18*20/100,3)+J18 -> 259.2 | L18: =K18*H18 -> 44582.4 | M18: Хорошее тех.состояние. Пригодные для дальнейшего использования | N18: Промплощадка АО "АНХК", г.Ангарск, Склад № 18, Иркутская область
A19: 16 | B19: АО "АНХК" | C19: №1 Невостребованные автомобильные запасные части | D19: 4548655101 | E19: Запчасти и прочее | F19: ВТУЛКА(КОРОЛЛА) | G19: 4865512060 | H19: 28 | I19: шт. | J19: 119 | K19: =ROUND(J19*20/100,3)+J19 -> 142.8 | L19: =K19*H19 -> 3998.4 | M19: Хорошее тех.состояние. Пригодные для дальнейшего использования | N19: Промплощадка АО "АНХК", г.Ангарск, Склад № 18, Иркутская область
A20: 17 | B20: АО "АНХК" | C20: №1 Невостребованные автомобильные запасные части | D20: 4548061201 | E20: Запчасти и прочее | F20: ВТУЛКА(ХАЙ-ЭЙС) | G20: 4806126030 | H20: 47 | I20: шт. | J20: 175 | K20: =ROUND(J20*20/100,3)+J20 -> 210 | L20: =K20*H20 -> 9870 | M20: Хорошее тех.состояние. Пригодные для дальнейшего использования | N20: Промплощадка АО "АНХК", г.Ангарск, Склад № 18, Иркутская область
A21: 18 | B21: АО "АНХК" | C21: №1 Невостребованные автомобильные запасные части | D21: 4544275201 | E21: Запчасти и прочее | F21: ВТУЛКА РУЛЕВОГО МЕХАНИЗМА(ХАЙ-ЭЙС) | G21: 4427526020 | H21: 6 | I21: шт. | J21: 89 | K21: =ROUND(J21*20/100,3)+J21 -> 106.8 | L21: =K21*H21 -> 640.8 | M21: Хорошее тех.состояние. Пригодные для дальнейшего использования | N21: Промплощадка АО "АНХК", г.Ангарск, Склад № 18, Иркутская область
A22: 19 | B22: АО "АНХК" | C22: №1 Невостребованные автомобильные запасные части | D22: 4583530301 | E22: Запчасти и прочее | F22: ДАТЧИК ДАВЛЕНИЯ(ХАЙ-ЭЙС) | G22: 8353030060 | H22: 10 | I22: шт. | J22: 167 | K22: =ROUND(J22*20/100,3)+J22 -> 200.4 | L22: =K22*H22 -> 2004 | M22: Хорошее тех.состояние. Пригодные для дальнейшего использования | N22: Промплощадка АО "АНХК", г.Ангарск, Склад № 18, Иркутская область
A23: 20 | B23: АО "АНХК" | C23: №1 Невостребованные автомобильные запасные части | D23: 4583420201 | E23: Запчасти и прочее | F23: ДАТЧИК ТЕМПЕРАТУР(ХАЙ-ЭЙС) | G23: 8342020020 | H23: 11 | I23: шт. | J23: 542 | K23: =ROUND(J23*20/100,3)+J23 -> 650.4 | L23: =K23*H23 -> 7154.4 | M23: Хорошее тех.состояние. Пригодные для дальнейшего использования | N23: Промплощадка АО "АНХК", г.Ангарск, Склад № 18, Иркутская область
A24: 21 | B24: АО "АНХК" | C24: №1 Невостребованные автомобильные запасные части | D24: 4531210302 | E24: Запчасти и прочее | F24: ДИСК СЦЕПЛ ВЕДУЩ(КОРОЛЛА) | G24: 3121032030 | H24: 38 | I24: шт. | J24: 1239 | K24: =ROUND(J24*20/100,3)+J24 -> 1486.8 | L24: =K24*H24 -> 56498.4 | M24: Хорошее тех.состояние. Пригодные для дальнейшего использования | N24: Промплощадка АО "АНХК", г.Ангарск, Склад № 18, Иркутская область
A25: 22 | B25: АО "АНХК" | C25: №1 Невостребованные автомобильные запасные части | D25: 4531210302 | E25: Запчасти и прочее | F25: ДИСК СЦЕПЛ ВЕДУЩ(КОРОЛЛА) | G25: 3121032121 | H25: 38 | I25: шт. | J25: 706 | K25: =ROUND(J25*20/100,3)+J25 -> 847.2 | L25: =K25*H25 -> 32193.6 | M25: Хорошее тех.состояние. Пригодные для дальнейшего использования | N25: Промплощадка АО "АНХК", г.Ангарск, Склад № 18, Иркутская область
A26: 23 | B26: АО "АНХК" | C26: №1 Невостребованные автомобильные запасные части | D26: 4531250103 | E26: Запчасти и прочее | F26: ДИСК СЦЕПЛ ВЕДОМЫЙ(КОРОЛЛА) | G26: 3125012163 3125012280 | H26: 34 | I26: шт. | J26: 1063.5 | K26: =ROUND(J26*20/100,3)+J26 -> 1276.2 | L26: =K26*H26 -> 43390.8 | M26: Хорошее тех.состояние. Пригодные для дальнейшего использования | N26: Промплощадка АО "АНХК", г.Ангарск, Склад № 18, Иркутская область
A27: 24 | B27: АО "АНХК" | C27: №1 Невостребованные автомобильные запасные части | D27: 4513011101 | E27: Запчасти и прочее | F27: КОЛЬЦО ПОРШЕВОЕ (Л.КРУИЗЕР) | G27: 1301317020 | H27: 3 | I27: компл. | J27: 2266 | K27: =ROUND(J27*20/100,3)+J27 -> 2719.2 | L27: =K27*H27 -> 8157.6 | M27: Хорошее тех.состояние. Пригодные для дальнейшего использования | N27: Промплощадка АО "АНХК", г.Ангарск, Склад № 18, Иркутская область
A28: 25 | B28: АО "АНХК" | C28: №1 Невостребованные автомобильные запасные части | D28: 4513013502 | E28: Запчасти и прочее | F28: КОЛЬЦО ПОРШНЕВОЕ(ХАЙ-ЭЙС) | G28: 1301354062 | H28: 4 | I28: шт. | J28: 1642 | K28: =ROUND(J28*20/100,3)+J28 -> 1970.4 | L28: =K28*H28 -> 7881.6 | M28: Хорошее тех.состояние. Пригодные для дальнейшего использования | N28: Промплощадка АО "АНХК", г.Ангарск, Склад № 18, Иркутская область
A29: 26 | B29: АО "АНХК" | C29: №1 Невостребованные автомобильные запасные части | D29: 4504495201 | E29: Запчасти и прочее | F29: КОЛОДКА ТОРМ(ХАЙ-ЭЙС) | G29: 449526130 | H29: 51 | I29: шт. | J29: 827 | K29: =ROUND(J29*20/100,3)+J29 -> 992.4 | L29: =K29*H29 -> 50612.4 | M29: Хорошее тех.состояние. Пригодные для дальнейшего использования | N29: Промплощадка АО "АНХК", г.Ангарск, Склад № 18, Иркутская область
A30: 27 | B30: АО "АНХК" | C30: №1 Невостребованные автомобильные запасные части | D30: 4590913001 | E30: Запчасти и прочее | F30: КОЛПАЧЕК МАСЛОСЪЕМНЫЙ | G30: 9091302053 | H30: 1024 | I30: шт. | J30: 40 | K30: =ROUND(J30*20/100,3)+J30 -> 48 | L30: =K30*H30 -> 49152 | M30: Хорошее тех.состояние. Пригодные для дальнейшего использования | N30: Промплощадка АО "АНХК", г.Ангарск, Склад № 18, Иркутская область
A31: 28 | B31: АО "АНХК" | C31: №1 Невостребованные автомобильные запасные части | D31: 4547230201 | E31: Запчасти и прочее | F31: КОЛПАЧЕК(ТОЙОТА) | G31: 4723020030 | H31: 4 | I31: шт. | J31: 14.3 | K31: =ROUND(J31*20/100,3)+J31 -> 17.16 | L31: =K31*H31 -> 68.64 | M31: Хорошее тех.состояние. Пригодные для дальнейшего использования | N31: Промплощадка АО "АНХК", г.Ангарск, Склад № 18, Иркутская область
A32: 29 | B32: АО "АНХК" | C32: №1 Невостребованные автомобильные запасные части | D32: 4513715601 | E32: Запчасти и прочее | F32: КЛАПАН ВЫПУСК(Л.КРУИЗЕР,КОРОЛЛА) | G32: 1371164020 | H32: 49 | I32: шт. | J32: 219 | K32: =ROUND(J32*20/100,3)+J32 -> 262.8 | L32: =K32*H32 -> 12877.2 | M32: Хорошее тех.состояние. Пригодные для дальнейшего использования | N32: Промплощадка АО "АНХК", г.Ангарск, Склад № 18, Иркутская область
A33: 30 | B33: АО "АНХК" | C33: №1 Невостребованные автомобильные запасные части | D33: 4513711601 | E33: Запчасти и прочее | F33: КЛАПАН ВПУСКНОЙ(Л.КРУИЗЕР) | G33: 1371164010 | H33: 4 | I33: шт. | J33: 149 | K33: =ROUND(J33*20/100,3)+J33 -> 178.8 | L33: =K33*H33 -> 715.2 | M33: Хорошее тех.состояние. Пригодные для дальнейшего использования | N33: Промплощадка АО "АНХК", г.Ангарск, Склад № 18, Иркутская область
A34: 31 | B34: АО "АНХК" | C34: №1 Невостребованные автомобильные запасные части | D34: 4513715101 | E34: Запчасти и прочее | F34: КЛАПАН ВЫПУСК(Л.КРУИЗЕР) | G34: 1371117010 | H34: 6 | I34: шт. | J34: 194 | K34: =ROUND(J34*20/100,3)+J34 -> 232.8 | L34: =K34*H34 -> 1396.8 | M34: Хорошее тех.состояние. Пригодные для дальнейшего использования | N34: Промплощадка АО "АНХК", г.Ангарск, Склад № 18, Иркутская область
A35: 32 | B35: АО "АНХК" | C35: №1 Невостребованные автомобильные запасные части | D35: 4581731601 | E35: Запчасти и прочее | F35: ЛАМПА-ПОВТОРИТЕЛЬ (Л.КРУИЗЕР) | G35: 8173160061 | H35: 1 | I35: шт. | J35: 383 | K35: =ROUND(J35*20/100,3)+J35 -> 459.6 | L35: =K35*H35 -> 459.6 | M35: Хорошее тех.состояние. Пригодные для дальнейшего использования | N35: Промплощадка АО "АНХК", г.Ангарск, Склад № 18, Иркутская область
A36: 33 | B36: АО "АНХК" | C36: №1 Невостребованные автомобильные запасные части | D36: 4515100601 | E36: Запчасти и прочее | F36: НАСОС МАСЛ(КОРОЛЛА) | G36: 1510064030 | H36: 9 | I36: шт. | J36: 884 | K36: =ROUND(J36*20/100,3)+J36 -> 1060.8 | L36: =K36*H36 -> 9547.2 | M36: Хорошее тех.состояние. Пригодные для дальнейшего использования | N36: Промплощадка АО "АНХК", г.Ангарск, Склад № 18, Иркутская область
A37: 34 | B37: АО "АНХК" | C37: №1 Невостребованные автомобильные запасные части | D37: 4523301601 | E37: Запчасти и прочее | F37: НАСОС ТОПЛ.ФИЛЬТРА(ТОЙОТА) | G37: 2330164200 | H37: 8 | I37: шт. | J37: 314 | K37: =ROUND(J37*20/100,3)+J37 -> 376.8 | L37: =K37*H37 -> 3014.4 | M37: Хорошее тех.состояние. Пригодные для дальнейшего использования | N37: Промплощадка АО "АНХК", г.Ангарск, Склад № 18, Иркутская область
A38: 35 | B38: АО "АНХК" | C38: №1 Невостребованные автомобильные запасные части | D38: 4545046101 | E38: Запчасти и прочее | F38: НАКОНЕЧНИК Р\Т(КОРОЛЛА) | G38: 4504619175 | H38: 103 | I38: шт. | J38: 304 | K38: =ROUND(J38*20/100,3)+J38 -> 364.8 | L38: =K38*H38 -> 37574.4 | M38: Хорошее тех.состояние. Пригодные для дальнейшего использования | N38: Промплощадка АО "АНХК", г.Ангарск, Склад № 18, Иркутская область
A39: 36 | B39: АО "АНХК" | C39: №1 Невостребованные автомобильные запасные части | D39: 4545046201 | E39: Запчасти и прочее | F39: НАКОНЕЧНИК РУЛ ТЯГИ(ХАЙ-ЭЙС) | G39: 4504629215 | H39: 39 | I39: шт. | J39: 238 | K39: =ROUND(J39*20/100,3)+J39 -> 285.6 | L39: =K39*H39 -> 11138.4 | M39: Хорошее тех.состояние. Пригодные для дальнейшего использования | N39: Промплощадка АО "АНХК", г.Ангарск, Склад № 18, Иркутская область
A40: 37 | B40: АО "АНХК" | C40: №1 Невостребованные автомобильные запасные части | D40: 4513101501 | E40: Запчасти и прочее | F40: НАБОР ПОРШНЕЙ(ХАЙ-ЭЙС) | G40: 1310154070 | H40: 17 | I40: компл. | J40: 2206.31 | K40: =ROUND(J40*20/100,3)+J40 -> 2647.572 | L40: =K40*H40 -> 45008.724 | M40: Хорошее тех.состояние. Пригодные для дальнейшего использования | N40: Промплощадка АО "АНХК", г.Ангарск, Склад № 18, Иркутская область
A41: 38 | B41: АО "АНХК" | C41: №1 Невостребованные автомобильные запасные части | D41: 4552103601 | E41: Запчасти и прочее | F41: НАКЛАДКА БАМПЕРА БОКОВАЯ(ТОЙОТА) | G41: 5210260060 | H41: 4 | I41: шт. | J41: 208 | K41: =ROUND(J41*20/100,3)+J41 -> 249.6 | L41: =K41*H41 -> 998.4 | M41: Хорошее тех.состояние. Пригодные для дальнейшего использования | N41: Промплощадка АО "АНХК", г.Ангарск, Склад № 18, Иркутская область
A42: 39 | B42: АО "АНХК" | C42: №1 Невостребованные автомобильные запасные части | D42: 4543330201 | E42: Запчасти и прочее | F42: ОПОРА ШАРОВ (Х-Э) | G42: 4333029155 | H42: 1 | I42: шт. | J42: 249 | K42: =ROUND(J42*20/100,3)+J42 -> 298.8 | L42: =K42*H42 -> 298.8 | M42: Хорошее тех.состояние. Пригодные для дальнейшего использования | N42: Промплощадка АО "АНХК", г.Ангарск, Склад № 18, Иркутская область
A43: 40 | B43: АО "АНХК" | C43: №1 Невостребованные автомобильные запасные части | D43: 4516572101 | E43: Запчасти и прочее | F43: ПАТРУБОК(КОРОЛЛА) | G43: 1657211100 | H43: 94 | I43: шт. | J43: 351 | K43: =ROUND(J43*20/100,3)+J43 -> 421.2 | L43: =K43*H43 -> 39592.8 | M43: Хорошее тех.состояние. Пригодные для дальнейшего использования | N43: Промплощадка АО "АНХК", г.Ангарск, Склад № 18, Иркутская область
A44: 41 | B44: АО "АНХК" | C44: №1 Невостребованные автомобильные запасные части | D44: 4531230304 | E44: Запчасти и прочее | F44: ПОДШИПНИК ВЫЖИМ(ХАЙ-ЭЙС) | G44: 3123035070 | H44: 9 | I44: шт. | J44: 1265 | K44: =ROUND(J44*20/100,3)+J44 -> 1518 | L44: =K44*H44 -> 13662 | M44: Хорошее тех.состояние. Пригодные для дальнейшего использования | N44: Промплощадка АО "АНХК", г.Ангарск, Склад № 18, Иркутская область
A45: 42 | B45: АО "АНХК" | C45: №1 Невостребованные автомобильные запасные части | D45: 4590363401 | E45: Запчасти и прочее | F45: ПОДШИПНИК(ХАЙ-ЭЙС) | G45: 9036340020 | H45: 54 | I45: шт. | J45: 1201 | K45: =ROUND(J45*20/100,3)+J45 -> 1441.2 | L45: =K45*H45 -> 77824.8 | M45: Хорошее тех.состояние. Пригодные для дальнейшего использования | N45: Промплощадка АО "АНХК", г.Ангарск, Склад № 18, Иркутская область
A46: 43 | B46: АО "АНХК" | C46: №1 Невостребованные автомобильные запасные части | D46: 4531230301 | E46: Запчасти и прочее | F46: ПОДШИПНИК ВЫЖИМ(КОРОЛЛА) | G46: 3123032020 | H46: 57 | I46: шт. | J46: 777 | K46: =ROUND(J46*20/100,3)+J46 -> 932.4 | L46: =K46*H46 -> 53146.8 | M46: Хорошее тех.состояние. Пригодные для дальнейшего использования | N46: Промплощадка АО "АНХК", г.Ангарск, Склад № 18, Иркутская область
A47: 44 | B47: АО "АНХК" | C47: №1 Невостребованные автомобильные запасные части | D47: 4590368401 | E47: Запчасти и прочее | F47: ПОДШИПНИК РОЛИК РАДИАЛ(КРУИЗЕР) | G47: 9036845087 | H47: 20 | I47: шт. | J47: 741 | K47: =ROUND(J47*20/100,3)+J47 -> 889.2 | L47: =K47*H47 -> 17784 | M47: Хорошее тех.состояние. Пригодные для дальнейшего использования | N47: Промплощадка АО "АНХК", г.Ангарск, Склад № 18, Иркутская область
A48: 45 | B48: АО "АНХК" | C48: №1 Невостребованные автомобильные запасные части | D48: 4590363402 | E48: Запчасти и прочее | F48: ПОДШИПНИК РТР-50,82(ТОЙОТА) | G48: 9036849084 | H48: 2 | I48: шт. | J48: 684 | K48: =ROUND(J48*20/100,3)+J48 -> 820.8 | L48: =K48*H48 -> 1641.6 | M48: Хорошее тех.состояние. Пригодные для дальнейшего использования | N48: Промплощадка АО "АНХК", г.Ангарск, Склад № 18, Иркутская область
A49: 46 | B49: АО "АНХК" | C49: №1 Невостребованные автомобильные запасные части | D49: 4590368302 | E49: Запчасти и прочее | F49: ПОДШИПНИК(ХАЙ-ЭЙС) | G49: 9036834001 | H49: 80 | I49: шт. | J49: 674 | K49: =ROUND(J49*20/100,3)+J49 -> 808.8 | L49: =K49*H49 -> 64704 | M49: Хорошее тех.состояние. Пригодные для дальнейшего использования | N49: Промплощадка АО "АНХК", г.Ангарск, Склад № 18, Иркутская область
A50: 47 | B50: АО "АНХК" | C50: №1 Невостребованные автомобильные запасные части | D50: 4531230201 | E50: Запчасти и прочее | F50: ПОДШИПНИК ВЫЖИМ(КОРОЛЛА) | G50: 3123012140 | H50: 14 | I50: шт. | J50: 662 | K50: =ROUND(J50*20/100,3)+J50 -> 794.4 | L50: =K50*H50 -> 11121.6 | M50: Хорошее тех.состояние. Пригодные для дальнейшего использования | N50: Промплощадка АО "АНХК", г.Ангарск, Склад № 18, Иркутская область
A51: 48 | B51: АО "АНХК" | C51: №1 Невостребованные автомобильные запасные части | D51: 4590369303 | E51: Запчасти и прочее | F51: ПОДШИПНИК(КОРОЛЛА) | G51: 9036938011 | H51: 150 | I51: шт. | J51: 636 | K51: =ROUND(J51*20/100,3)+J51 -> 763.2 | L51: =K51*H51 -> 114480 | M51: Хорошее тех.состояние. Пригодные для дальнейшего использования | N51: Промплощадка АО "АНХК", г.Ангарск, Склад № 18, Иркутская область
A52: 49 | B52: АО "АНХК" | C52: №1 Невостребованные автомобильные запасные части | D52: 4590368201 | E52: Запчасти и прочее | F52: ПОДШИПНИК(ХАЙ-ЭЙС) | G52: 9036821001 | H52: 103 | I52: шт. | J52: 573 | K52: =ROUND(J52*20/100,3)+J52 -> 687.6 | L52: =K52*H52 -> 70822.8 | M52: Хорошее тех.состояние. Пригодные для дальнейшего использования | N52: Промплощадка АО "АНХК", г.Ангарск, Склад № 18, Иркутская область
A53: 50 | B53: АО "АНХК" | C53: №1 Невостребованные автомобильные запасные части | D53: 4590369201 | E53: Запчасти и прочее | F53: ПОДШИПНИК(КОРОЛЛА) | G53: 9036928006 | H53: 34 | I53: шт. | J53: 522 | K53: =ROUND(J53*20/100,3)+J53 -> 626.4 | L53: =K53*H53 -> 21297.6 | M53: Хорошее тех.состояние. Пригодные для дальнейшего использования | N53: Промплощадка АО "АНХК", г.Ангарск, Склад № 18, Иркутская область
A54: 51 | B54: АО "АНХК" | C54: №1 Невостребованные автомобильные запасные части | D54: 4590365401 | E54: Запчасти и прочее | F54: ПОДШИПНИК П/ОСИ(Л.КРУИЗЕР) | G54: 9036547013 | H54: 35 | I54: шт. | J54: 514 | K54: =ROUND(J54*20/100,3)+J54 -> 616.8 | L54: =K54*H54 -> 21588 | M54: Хорошее тех.состояние. Пригодные для дальнейшего использования | N54: Промплощадка АО "АНХК", г.Ангарск, Склад № 18, Иркутская область
A55: 52 | B55: АО "АНХК" | C55: №1 Невостребованные автомобильные запасные части | D55: 4590368404 | E55: Запчасти и прочее | F55: ПОДШИПНИК(КРУИЗЕР) | G55: 903684908415 | H55: 17 | I55: шт. | J55: 173 | K55: =ROUND(J55*20/100,3)+J55 -> 207.6 | L55: =K55*H55 -> 3529.2 | M55: Хорошее тех.состояние. Пригодные для дальнейшего использования | N55: Промплощадка АО "АНХК", г.Ангарск, Склад № 18, Иркутская область
A56: 53 | B56: АО "АНХК" | C56: №1 Невостребованные автомобильные запасные части | D56: 4511115102 | E56: Запчасти и прочее | F56: ПРОКЛАДКА Г\БЛ(Л.КРУИЗЕР) | G56: 111151701001 | H56: 3 | I56: шт | J56: 2548 | K56: =ROUND(J56*20/100,3)+J56 -> 3057.6 | L56: =H56*K56 -> 9172.8 | M56: Хорошее тех.состояние. Пригодные для дальнейшего использования | N56: Промплощадка АО "АНХК", г.Ангарск, Склад № 18, Иркутская область
A57: 54 | B57: АО "АНХК" | C57: №1 Невостребованные автомобильные запасные части | D57: 4511115102 | E57: Запчасти и прочее | F57: ПРОКЛАДКА Г\БЛ(Л.КРУИЗЕР) | G57: 1717317010 | H57: 3 | I57: шт. | J57: 433 | K57: =ROUND(J57*20/100,3)+J57 -> 519.6 | L57: =K57*H57 -> 1558.8 | M57: Хорошее тех.состояние. Пригодные для дальнейшего использования | N57: Промплощадка АО "АНХК", г.Ангарск, Склад № 18, Иркутская область
A58: 55 | B58: АО "АНХК" | C58: №1 Невостребованные автомобильные запасные части | D58: 4511115602 | E58: Запчасти и прочее | F58: ПРОКЛАДКА Г\Б(КОРОЛЛА) | G58: 111564121 | H58: 9 | I58: шт. | J58: 422 | K58: =ROUND(J58*20/100,3)+J58 -> 506.4 | L58: =K58*H58 -> 4557.6 | M58: Хорошее тех.состояние. Пригодные для дальнейшего использования | N58: Промплощадка АО "АНХК", г.Ангарск, Склад № 18, Иркутская область
A59: 56 | B59: АО "АНХК" | C59: №1 Невостребованные автомобильные запасные части | D59: 4511115601 | E59: Запчасти и прочее | F59: ПРОКЛАДКА Г\Б(КОРОЛЛА) | G59: 1111564050 | H59: 64 | I59: шт. | J59: 351 | K59: =ROUND(J59*20/100,3)+J59 -> 421.2 | L59: =K59*H59 -> 26956.8 | M59: Хорошее тех.состояние. Пригодные для дальнейшего использования | N59: Промплощадка АО "АНХК", г.Ангарск, Склад № 18, Иркутская область
A60: 57 | B60: АО "АНХК" | C60: №1 Невостребованные автомобильные запасные части | D60: 4511115501 | E60: Запчасти и прочее | F60: ПРОКЛАДКА Г\Б(ХАЙ-ЭЙС) | G60: 1111554081 | H60: 42 | I60: шт. | J60: 351 | K60: =ROUND(J60*20/100,3)+J60 -> 421.2 | L60: =K60*H60 -> 17690.4 | M60: Хорошее тех.состояние. Пригодные для дальнейшего использования | N60: Промплощадка АО "АНХК", г.Ангарск, Склад № 18, Иркутская область
A61: 58 | B61: АО "АНХК" | C61: №1 Невостребованные автомобильные запасные части | D61: 4517177501 | E61: Запчасти и прочее | F61: ПРОКЛАДКА(ХАЙ-ЭЙС) | G61: 1717754020 | H61: 9 | I61: шт. | J61: 190 | K61: =ROUND(J61*20/100,3)+J61 -> 228 | L61: =K61*H61 -> 2052 | M61: Хорошее тех.состояние. Пригодные для дальнейшего использования | N61: Промплощадка АО "АНХК", г.Ангарск, Склад № 18, Иркутская область
A62: 59 | B62: АО "АНХК" | C62: №1 Невостребованные автомобильные запасные части | D62: 4517173601 | E62: Запчасти и прочее | F62: ПРОКЛАДКА(КОРОЛЛА) | G62: 1717364050 | H62: 1 | I62: шт. | J62: 124 | K62: =ROUND(J62*20/100,3)+J62 -> 148.8 | L62: =K62*H62 -> 148.8 | M62: Хорошее тех.состояние. Пригодные для дальнейшего использования | N62: Промплощадка АО "АНХК", г.Ангарск, Склад № 18, Иркутская область
A63: 60 | B63: АО "АНХК" | C63: №1 Невостребованные автомобильные запасные части | D63: 4543420602 | E63: Запчасти и прочее | F63: ПРИВОД КОЛЕСА-ШАРНИР Р\У(Л.КРУИЗЕР) | G63: 4341012150 | H63: 7 | I63: шт. | J63: 360 | K63: =ROUND(J63*20/100,3)+J63 -> 432 | L63: =K63*H63 -> 3024 | M63: Хорошее тех.состояние. Пригодные для дальнейшего использования | N63: Промплощадка АО "АНХК", г.Ангарск, Склад № 18, Иркутская область
A64: 61 | B64: АО "АНХК" | C64: №1 Невостребованные автомобильные запасные части | D64: 4513101601 | E64: Запчасти и прочее | F64: ПОРШЕНЬ(КОРОЛЛА) | G64: 131016414001 | H64: 4 | I64: шт. | J64: 1225.5 | K64: =ROUND(J64*20/100,3)+J64 -> 1470.6 | L64: =K64*H64 -> 5882.4 | M64: Хорошее тех.состояние. Пригодные для дальнейшего использования | N64: Промплощадка АО "АНХК", г.Ангарск, Склад № 18, Иркутская область
A65: 62 | B65: АО "АНХК" | C65: №1 Невостребованные автомобильные запасные части | D65: 4542301201 | E65: Запчасти и прочее | F65: ПОЛУОСЬ(ХАЙ-ЭЙС) | G65: 4230126906 | H65: 2 | I65: шт. | J65: 90 | K65: =ROUND(J65*20/100,3)+J65 -> 108 | L65: =K65*H65 -> 216 | M65: Хорошее тех.состояние. Пригодные для дальнейшего использования | N65: Промплощадка АО "АНХК", г.Ангарск, Склад № 18, Иркутская область
A66: 63 | B66: АО "АНХК" | C66: №1 Невостребованные автомобильные запасные части | D66: 4590916001 | E66: Запчасти и прочее | F66: РЕМЕНЬ ГЕНЕРАТОРА(КОРОЛЛА) | G66: 9936521070 | H66: 65 | I66: шт. | J66: 144 | K66: =ROUND(J66*20/100,3)+J66 -> 172.8 | L66: =K66*H66 -> 11232 | M66: Хорошее тех.состояние. Пригодные для дальнейшего использования | N66: Промплощадка АО "АНХК", г.Ангарск, Склад № 18, Иркутская область
A67: 64 | B67: АО "АНХК" | C67: №1 Невостребованные автомобильные запасные части | D67: 4590916006 | E67: Запчасти и прочее | F67: РЕМЕНЬ ВЕНТИЛЯТОРА(КОРОЛЛА) | G67: 909160233283 | H67: 57 | I67: шт. | J67: 116 | K67: =ROUND(J67*20/100,3)+J67 -> 139.2 | L67: =K67*H67 -> 7934.4 | M67: Хорошее тех.состояние. Пригодные для дальнейшего использования | N67: Промплощадка АО "АНХК", г.Ангарск, Склад № 18, Иркутская область
A68: 65 | B68: АО "АНХК" | C68: №1 Невостребованные автомобильные запасные части | D68: 4599365502 | E68: Запчасти и прочее | F68: РЕМЕНЬ(КОРОЛЛА) | G68: 9936550790 | H68: 141 | I68: шт. | J68: 126.24 | K68: =ROUND(J68*20/100,3)+J68 -> 151.488 | L68: =K68*H68 -> 21359.808 | M68: Хорошее тех.состояние. Пригодные для дальнейшего использования | N68: Промплощадка АО "АНХК", г.Ангарск, Склад № 18, Иркутская область
A69: 66 | B69: АО "АНХК" | C69: №1 Невостребованные автомобильные запасные части | D69: 4590256001 | E69: Запчасти и прочее | F69: РЕМЕНЬ КОМПРЕС(КОРОЛЛА) | G69: 9091602256 | H69: 32 | I69: шт. | J69: 219 | K69: =ROUND(J69*20/100,3)+J69 -> 262.8 | L69: =K69*H69 -> 8409.6 | M69: Хорошее тех.состояние. Пригодные для дальнейшего использования | N69: Промплощадка АО "АНХК", г.Ангарск, Склад № 18, Иркутская область
A70: 67 | B70: АО "АНХК" | C70: №1 Невостребованные автомобильные запасные части | D70: 4590916004 | E70: Запчасти и прочее | F70: РЕМЕНЬ(ХАЙ-ЭЙС) | G70: 9091602262 | H70: 49 | I70: шт. | J70: 122.77 | K70: =ROUND(J70*20/100,3)+J70 -> 147.324 | L70: =K70*H70 -> 7218.876 | M70: Хорошее тех.состояние. Пригодные для дальнейшего использования | N70: Промплощадка АО "АНХК", г.Ангарск, Склад № 18, Иркутская область
A71: 68 | B71: АО "АНХК" | C71: №1 Невостребованные автомобильные запасные части | D71: 4527700701 | E71: Запчасти и прочее | F71: РЕГУЛЯТОР НАПРЯЖ(КОРОЛЛА) | G71: 2770070030 | H71: 7 | I71: шт. | J71: 334 | K71: =ROUND(J71*20/100,3)+J71 -> 400.8 | L71: =K71*H71 -> 2805.6 | M71: Хорошее тех.состояние. Пригодные для дальнейшего использования | N71: Промплощадка АО "АНХК", г.Ангарск, Склад № 18, Иркутская область
A72: 69 | B72: АО "АНХК" | C72: №1 Невостребованные автомобильные запасные части | D72: 4527700601 | E72: Запчасти и прочее | F72: РЕГУЛЯТОР НАПР(КОРОЛЛА) | G72: 2770064040 | H72: 7 | I72: шт. | J72: 1667 | K72: =ROUND(J72*20/100,3)+J72 -> 2000.4 | L72: =K72*H72 -> 14002.8 | M72: Хорошее тех.состояние. Пригодные для дальнейшего использования | N72: Промплощадка АО "АНХК", г.Ангарск, Склад № 18, Иркутская область
A73: 70 | B73: АО "АНХК" | C73: №1 Невостребованные автомобильные запасные части | D73: 4504493601 | E73: Запчасти и прочее | F73: РЕМ К-Т ГЛАВН ЦИЛИНДРА СЦЕПЛЕН(ТОЙОТА) | G73: 449360150 | H73: 2 | I73: шт. | J73: 279 | K73: =ROUND(J73*20/100,3)+J73 -> 334.8 | L73: =K73*H73 -> 669.6 | M73: Хорошее тех.состояние. Пригодные для дальнейшего использования | N73: Промплощадка АО "АНХК", г.Ангарск, Склад № 18, Иркутская область
A74: 71 | B74: АО "АНХК" | C74: №1 Невостребованные автомобильные запасные части | D74: 4504313101 | E74: Запчасти и прочее | F74: РЕМ К-Т ГЛ ТОРМ ЦИЛ(ХАЙ-ЭЙС) | G74: 431312030 | H74: 81 | I74: шт. | J74: 74 | K74: =ROUND(J74*20/100,3)+J74 -> 88.8 | L74: =K74*H74 -> 7192.8 | M74: Хорошее тех.состояние. Пригодные для дальнейшего использования | N74: Промплощадка АО "АНХК", г.Ангарск, Склад № 18, Иркутская область
A75: 72 | B75: АО "АНХК" | C75: №1 Невостребованные автомобильные запасные части | D75: 4553101107 | E75: Запчасти и прочее | F75: РЕШЕТКА РАДИАТОРА(КОРОЛЛА) | G75: 5310112660 | H75: 17 | I75: шт. | J75: 528 | K75: =ROUND(J75*20/100,3)+J75 -> 633.6 | L75: =K75*H75 -> 10771.2 | M75: Хорошее тех.состояние. Пригодные для дальнейшего использования | N75: Промплощадка АО "АНХК", г.Ангарск, Склад № 18, Иркутская область
A76: 73 | B76: АО "АНХК" | C76: №1 Невостребованные автомобильные запасные части | D76: 4504434601 | E76: Запчасти и прочее | F76: САЛЬНИК НАБОРНЫЙ(ТОЙОТА) | G76: 443460030 | H76: 4 | I76: шт. | J76: 1900 | K76: =ROUND(J76*20/100,3)+J76 -> 2280 | L76: =K76*H76 -> 9120 | M76: Хорошее тех.состояние. Пригодные для дальнейшего использования | N76: Промплощадка АО "АНХК", г.Ангарск, Склад № 18, Иркутская область
A77: 74 | B77: АО "АНХК" | C77: №1 Невостребованные автомобильные запасные части | D77: 4590311310 | E77: Запчасти и прочее | F77: САЛЬНИК ХВОСТОВИКА З\М(ХАЙ-ЭЙС) | G77: 9031138133 | H77: 7 | I77: шт. | J77: 121 | K77: =ROUND(J77*20/100,3)+J77 -> 145.2 | L77: =K77*H77 -> 1016.4 | M77: Хорошее тех.состояние. Пригодные для дальнейшего использования | N77: Промплощадка АО "АНХК", г.Ангарск, Склад № 18, Иркутская область
A78: 75 | B78: АО "АНХК" | C78: №1 Невостребованные автомобильные запасные части | D78: 4590311201 | E78: Запчасти и прочее | F78: САЛЬНИК(КОРОЛЛА) | G78: 9031125011 | H78: 8 | I78: шт. | J78: 116 | K78: =ROUND(J78*20/100,3)+J78 -> 139.2 | L78: =K78*H78 -> 1113.6 | M78: Хорошее тех.состояние. Пригодные для дальнейшего использования | N78: Промплощадка АО "АНХК", г.Ангарск, Склад № 18, Иркутская область
A79: 76 | B79: АО "АНХК" | C79: №1 Невостребованные автомобильные запасные части | D79: 4590311501 | E79: Запчасти и прочее | F79: САЛЬНИК(ХАЙ-ЭЙС) | G79: 9031150005 | H79: 81 | I79: шт. | J79: 57 | K79: =ROUND(J79*20/100,3)+J79 -> 68.4 | L79: =K79*H79 -> 5540.4 | M79: Хорошее тех.состояние. Пригодные для дальнейшего использования | N79: Промплощадка АО "АНХК", г.Ангарск, Склад № 18, Иркутская область
A80: 77 | B80: АО "АНХК" | C80: №1 Невостребованные автомобильные запасные части | D80: 4585120901 | E80: Запчасти и прочее | F80: СТЕКЛООЧИСТИТЕЛЬ(ХАЙ-ЭЙС) | G80: 8512095J00 | H80: 3 | I80: шт. | J80: 351 | K80: =ROUND(J80*20/100,3)+J80 -> 421.2 | L80: =K80*H80 -> 1263.6 | M80: Хорошее тех.состояние. Пригодные для дальнейшего использования | N80: Промплощадка АО "АНХК", г.Ангарск, Склад № 18, Иркутская область
A81: 78 | B81: АО "АНХК" | C81: №1 Невостребованные автомобильные запасные части | D81: 4512361501 | E81: Запчасти и прочее | F81: САЙЛЕНТБЛОК ДВИГАТЕЛЯ(ХАЙ-ЭЙС) | G81: 1236154143 | H81: 8 | I81: шт. | J81: 1233 | K81: =ROUND(J81*20/100,3)+J81 -> 1479.6 | L81: =K81*H81 -> 11836.8 | M81: Хорошее тех.состояние. Пригодные для дальнейшего использования | N81: Промплощадка АО "АНХК", г.Ангарск, Склад № 18, Иркутская область
A82: 79 | B82: АО "АНХК" | C82: №1 Невостребованные автомобильные запасные части | D82: 4552351601 | E82: Запчасти и прочее | F82: СТУПЕНЬКА З\БАМПЕРА(ТОЙОТА) | G82: 5235160070 | H82: 2 | I82: шт. | J82: 530 | K82: =ROUND(J82*20/100,3)+J82 -> 636 | L82: =K82*H82 -> 1272 | M82: Хорошее тех.состояние. Пригодные для дальнейшего использования | N82: Промплощадка АО "АНХК", г.Ангарск, Склад № 18, Иркутская область
A83: 80 | B83: АО "АНХК" | C83: №1 Невостребованные автомобильные запасные части | D83: 4556121901 | E83: Запчасти и прочее | F83: УПЛОТНЕНИЕ ВЕТР СТЕКЛА(ТОЙОТА) | G83: 5612190K00 | H83: 1 | I83: шт | J83: 2661 | K83: =ROUND(J83*20/100,3)+J83 -> 3193.2 | L83: =H83*K83 -> 3193.2 | M83: Хорошее тех.состояние. Пригодные для дальнейшего использования | N83: Промплощадка АО "АНХК", г.Ангарск, Склад № 18, Иркутская область
A84: 81 | B84: АО "АНХК" | C84: №1 Невостребованные автомобильные запасные части | D84: 4581170601 | E84: Запчасти и прочее | F84: ФАРА ПЕРЕД(Л.КРУИЗЕР) | G84: 8113060470 | H84: 7 | I84: шт. | J84: 1061 | K84: =ROUND(J84*20/100,3)+J84 -> 1273.2 | L84: =K84*H84 -> 8912.4 | M84: Хорошее тех.состояние. Пригодные для дальнейшего использования | N84: Промплощадка АО "АНХК", г.Ангарск, Склад № 18, Иркутская область
A85: 82 | B85: АО "АНХК" | C85: №1 Невостребованные автомобильные запасные части | D85: 4590981042 | E85: Запчасти и прочее | F85: ФАРА(ХАЙ-ЭЙС) | G85: 9098104008 | H85: 49 | I85: шт. | J85: 190 | K85: =ROUND(J85*20/100,3)+J85 -> 228 | L85: =K85*H85 -> 11172 | M85: Хорошее тех.состояние. Пригодные для дальнейшего использования | N85: Промплощадка АО "АНХК", г.Ангарск, Склад № 18, Иркутская область
A86: 83 | B86: АО "АНХК" | C86: №1 Невостребованные автомобильные запасные части | D86: 4517801601 | E86: Запчасти и прочее | F86: ФИЛЬТР ВОЗД(КОРОЛЛА) | G86: 1780164010 | H86: 16 | I86: шт. | J86: 271 | K86: =ROUND(J86*20/100,3)+J86 -> 325.2 | L86: =K86*H86 -> 5203.2 | M86: Хорошее тех.состояние. Пригодные для дальнейшего использования | N86: Промплощадка АО "АНХК", г.Ангарск, Склад № 18, Иркутская область
A87: 84 | B87: АО "АНХК" | C87: №1 Невостребованные автомобильные запасные части | D87: 4517801501 | E87: Запчасти и прочее | F87: ФИЛЬТР ВОЗД(ХАЙ-ЭЙС) | G87: 1780154100 | H87: 44 | I87: шт. | J87: 243 | K87: =ROUND(J87*20/100,3)+J87 -> 291.6 | L87: =K87*H87 -> 12830.4 | M87: Хорошее тех.состояние. Пригодные для дальнейшего использования | N87: Промплощадка АО "АНХК", г.Ангарск, Склад № 18, Иркутская область
A88: 85 | B88: АО "АНХК" | C88: №1 Невостребованные автомобильные запасные части | D88: 4581510802 | E88: Запчасти и прочее | F88: ФОНАРЬ ПОВОРОТ ПРАВ(КОРОЛЛА) | G88: 8151095J116 | H88: 4 | I88: шт. | J88: 208 | K88: =ROUND(J88*20/100,3)+J88 -> 249.6 | L88: =K88*H88 -> 998.4 | M88: Хорошее тех.состояние. Пригодные для дальнейшего использования | N88: Промплощадка АО "АНХК", г.Ангарск, Склад № 18, Иркутская область
A89: 86 | B89: АО "АНХК" | C89: №1 Невостребованные автомобильные запасные части | D89: 4545045601 | E89: Запчасти и прочее | F89: ХВОСТОВИК Р\КОЛ-НАКОНЕЧНИК(Л.КРУИЗЕР) | G89: 4504669135 | H89: 3 | I89: шт. | J89: 978 | K89: =ROUND(J89*20/100,3)+J89 -> 1173.6 | L89: =K89*H89 -> 3520.8 | M89: Хорошее тех.состояние. Пригодные для дальнейшего использования | N89: Промплощадка АО "АНХК", г.Ангарск, Склад № 18, Иркутская область
A90: 87 | B90: АО "АНХК" | C90: №1 Невостребованные автомобильные запасные части | D90: 4531470601 | E90: Запчасти и прочее | F90: ЦИЛИHДР СЦЕПЛЕHИЯ РАБОЧИЙ /Х-Э/ | G90: 314706161 | H90: 1 | I90: шт. | J90: 351 | K90: =ROUND(J90*20/100,3)+J90 -> 421.2 | L90: =K90*H90 -> 421.2 | M90: Хорошее тех.состояние. Пригодные для дальнейшего использования | N90: Промплощадка АО "АНХК", г.Ангарск, Склад № 18, Иркутская область
A91: 88 | B91: АО "АНХК" | C91: №1 Невостребованные автомобильные запасные части | D91: 4590947001 | E91: Запчасти и прочее | F91: ШЛАНГ ТОРМОЗНОЙ(КОРОЛЛА) | G91: 9094702532 | H91: 96 | I91: шт. | J91: 761 | K91: =ROUND(J91*20/100,3)+J91 -> 913.2 | L91: =K91*H91 -> 87667.2 | M91: Хорошее тех.состояние. Пригодные для дальнейшего использования | N91: Промплощадка АО "АНХК", г.Ангарск, Склад № 18, Иркутская область
A92: 89 | B92: АО "АНХК" | C92: №1 Невостребованные автомобильные запасные части | D92: 4590947002 | E92: Запчасти и прочее | F92: ШЛАНГ ТОРМОЗН. (Л.КРУИЗЕР) | G92: 9094702533 | H92: 42 | I92: шт. | J92: 257 | K92: =ROUND(J92*20/100,3)+J92 -> 308.4 | L92: =K92*H92 -> 12952.8 | M92: Хорошее тех.состояние. Пригодные для дальнейшего использования | N92: Промплощадка АО "АНХК", г.Ангарск, Склад № 18, Иркутская область
